fUST/lending_fUST_20251230
["ID","MTS","AMOUNT","RATE_DAILY","PERIOD"]
[400035445,1767043853235,-994.31,0.00027397,2]
[400035446,1767043853244,-650.0,0.00027397,5]
[400035447,1767043853254,-403.601255,0.00027397,7]
[400035448,1767043853263,-403.601255,0.00027397,7]
[400035449,1767043853272,-403.601255,0.00027397,7]
[400035450,1767043853282,-403.601255,0.00027397,7]
[400035451,1767043853292,-403.601255,0.00027397,7]
[400035452,1767043853301,-403.601255,0.00027397,7]
[400035453,1767043853311,-403.601255,0.00027397,7]
[400035454,1767043853320,-403.601255,0.00027397,7]
[400035455,1767043853330,-300.0,0.00027397,2]
[400035456,1767043853339,-300.0,0.00027397,2]
[400035457,1767043853349,-300.0,0.00027397,2]
[400035458,1767043853358,-300.0,0.00027397,2]
[400035459,1767043853368,-300.0,0.00027397,2]
[400035460,1767043853377,-300.0,0.00027397,2]
[400035461,1767043853387,-300.0,0.00027397,2]
[400035462,1767043853397,-300.0,0.00027397,2]
[400035463,1767043853406,-300.0,0.00027397,2]
[400035464,1767043853416,-151.0,0.00027397,7]
[400035465,1767043853426,-151.0,0.00027397,7]
[400035466,1767043853435,-151.0,0.00027397,7]
[400035467,1767043853445,-151.0,0.00027397,7]
[400035468,1767043853454,-151.0,0.00027397,7]
[400035469,1767043853464,-151.0,0.00027397,7]
[400035470,1767043853473,-151.0,0.00027397,7]
[400035471,1767043853483,-151.0,0.00027397,7]
[400035472,1767043853493,-161.103448,0.00027397,7]
[400035473,1767043853503,-151.0,0.00027397,7]
[400035474,1767043853513,-151.0,0.00027397,7]
[400035475,1767043853522,-151.0,0.00027397,7]
[400035476,1767043853610,-151.0,0.00027397,7]
[400035477,1767043853621,-151.0,0.00027397,7]
[400035478,1767043853631,-229.956651,0.00027397,7]
[400035479,1767043853640,-500.0,0.00027397,5]
[400035480,1767043853649,-157.04098773,0.00027397,5]
[400035481,1767043853660,-15277.58765547,0.00027423,2]
[400035482,1767043853669,-655.0,0.00027487,2]
[400035483,1767043853678,-5000.0,0.00027499,7]
[400035484,1767043853688,-2000.0,0.000275,7]
[400035485,1767043853697,-1207.08,0.000275,7]
[400035486,1767043853707,-45902.02051304,0.000275,2]
[400035487,1767043853716,-617.40005154,0.00027502,2]
[400035488,1767043853725,-5761.0,0.00027502,10]
[400035489,1767043853735,-655.0,0.00027503,2]
[400035490,1767043853745,-2314.81949326,0.00027544,2]
[400035491,1767043853755,-655.0,0.00027579,2]
[400035492,1767043853763,-655.0,0.00027589,2]
[400035493,1767043853773,-1253.24308537,0.00027605,2]
[400035494,1767043853782,-5000.0,0.00027615,15]
[400035495,1767043853791,-570.17,0.00027671,2]
[400035496,1767043853801,-893.04,0.00027671,2]
[400035497,1767043853810,-502.9,0.00027671,2]
[400035498,1767043853824,-967.31,0.00027671,2]
[400035499,1767043853834,-4821.6,0.00027671,2]
[400035500,1767043853843,-501.1,0.00027671,2]
[400035501,1767043853852,-680.8,0.00027671,2]
[400035502,1767043853863,-878.29,0.00027671,2]
[400035503,1767043853872,-994.31,0.00027671,2]
[400035504,1767043853882,-388.5926475,0.00027684,30]
[400035505,1767043853892,-1822.93,0.000277,14]
[400035506,1767043853902,-2314.81949326,0.00027732,2]
[400035507,1767043853911,-655.0,0.00027753,2]
[400035508,1767043853920,-5000.0,0.00027761,2]
[400035509,1767043853930,-1000.0,0.00027766,30]
[400035510,1767043853939,-1000.0,0.00027766,30]
[400035511,1767043853948,-5000.0,0.00027766,15]
[400035512,1767043853957,-500.0,0.00027767,5]
[400035513,1767043853967,-500.0,0.00027767,5]
[400035514,1767043853976,-500.0,0.00027767,20]
[400035515,1767043853986,-500.0,0.00027767,5]
[400035516,1767043853996,-500.0,0.00027767,20]
[400035517,1767043854005,-500.0,0.00027767,5]
[400035518,1767043854014,-500.0,0.00027767,5]
[400035519,1767043854023,-500.0,0.00027767,20]
[400035520,1767043854032,-655.0,0.00027775,2]
[400035521,1767043854042,-1000.0,0.00027777,5]
[400035522,1767043854050,-655.0,0.00027795,2]
[400035523,1767043854059,-231.42,0.000278,2]
[400035524,1767043854068,-655.0,0.00027804,2]
[400035525,1767043854078,-655.0,0.00027824,2]
[400035526,1767043854088,-5000.0,0.00027828,10]
[400035527,1767043854098,-451.3478843,0.0002787,2]
[400035528,1767043854107,-19168.0495517,0.0002787,2]
[400035529,1767043854117,-2149.02888,0.0002787,2]
[400035530,1767043854126,-29245.3533368,0.0002787,2]
[400035531,1767043854136,-7025.5355344,0.0002787,2]
[400035532,1767043854145,-338.2114975,0.00027893,2]
[400035533,1767043854154,-271.04640484,0.00027922,2]
[400035534,1767043854163,-5000.0,0.00027944,5]
[400035535,1767043854173,-2398.4119403,0.00027944,5]
[400035536,1767043854182,-2487.15318209,0.00027944,5]
[400035537,1767043854192,-2579.17784983,0.00027944,5]
[400035538,1767043854202,-2674.60743027,0.00027944,5]
[400035539,1767043854212,-570.17,0.00027945,2]
[400035540,1767043854221,-1782.04564378,0.00027945,5]
[400035541,1767043854230,-525.75328534,0.00027945,5]
[400035542,1767043854239,-893.04,0.00027945,2]
[400035543,1767043854248,-1547.57225247,0.00027945,5]
[400035544,1767043854257,-502.9,0.00027945,2]
[400035545,1767043854267,-967.31,0.00027945,2]
[400035546,1767043854276,-2100.9101282,0.00027945,5]
[400035547,1767043854286,-4821.6,0.00027945,2]
[400035548,1767043854296,-1862.68446546,0.00027945,5]
[400035549,1767043854305,-501.1,0.00027945,2]
[400035550,1767043854315,-680.8,0.00027945,2]
[400035551,1767043854324,-878.29,0.00027945,2]
[400035552,1767043854333,-994.31,0.00027945,2]
[400035553,1767043854343,-1000.0,0.00027945,5]
[400035554,1767043854354,-750.0,0.00027945,5]
[400035555,1767043854364,-250.0,0.00027945,5]
[400035556,1767043854374,-250.0,0.00027945,5]
[400035557,1767043854383,-655.0,0.0002799,2]
[400035558,1767043854396,-5000.0,0.00027999,2]
[400035559,1767043854413,-36142.62274134,0.00028,2]
[400035560,1767043854651,-4247.00643768,0.00028,2]
[400035561,1767043854667,-776.68808795,0.00028,2]
[400035562,1767043854682,-19037.16580179,0.00028,2]
[400035563,1767043854737,-211.21437953,0.00021917,2]
[400035564,1767043854749,-488.15692853,0.00021917,2]
[400035565,1767043854761,-30934.14173393,0.00028,2]
[400035566,1767043854778,-34159.78746408,0.00028,2]
[400035567,1767043854794,-479.93791128,0.00028,2]
[400035568,1767043854986,-1452.374,0.00028,2]
[400035569,1767043854997,-14286.27408365,0.00028,2]
[400035570,1767043964990,13124.57774915,0.00028,120]
[400035571,1767044280169,400.05,9.99e-05,2]
[400035572,1767044306707,-159.99,0.00013593,2]
[400035581,1767044546703,-298.1677595,0.00013593,2]
[400035613,1767045032411,-8356.86983611,0.00013598,2]
[400035616,1767045032421,-173.69063498,0.00013606,2]
[400035618,1767045032430,-300.0,0.00013693,2]
[400035619,1767045032445,-300.0,0.00013693,2]
[400035621,1767045032454,-10000.0,0.00013694,2]
[400035623,1767045032463,-500.0,0.00013696,2]
[400035625,1767045032472,-500.0,0.00013696,2]
[400035627,1767045032482,-500.0,0.00013696,2]
[400035629,1767045032490,-500.0,0.00013696,2]
[400035631,1767045032500,-500.0,0.00013696,2]
[400035632,1767045032509,-192.18156005,0.00013696,2]
[400035633,1767045032518,-500.0,0.00013696,2]
[400035634,1767045032528,-500.0,0.00013696,2]
[400035635,1767045032537,-500.0,0.00013696,2]
[400035636,1767045032547,-626.84296297,0.00013696,2]
[400035637,1767045032556,-500.0,0.00013696,2]
[400035638,1767045032565,-500.0,0.00013696,2]
[400035639,1767045032574,-500.0,0.00013696,2]
[400035640,1767045032583,-500.0,0.00013696,2]
[400035641,1767045032594,-500.0,0.00013696,2]
[400035642,1767045032603,-500.0,0.00013696,2]
[400035643,1767045032612,-489.96904898,0.00013696,2]
[400035644,1767045032621,-500.0,0.00013696,2]
[400035645,1767045032631,-296.63011615,0.00013696,2]
[400035646,1767045032640,-500.0,0.00013696,2]
[400035647,1767045032649,-198.73641632,0.00013696,2]
[400035648,1767045032658,-500.0,0.00013696,2]
[400035649,1767045032667,-500.0,0.00013696,2]
[400035651,1767045032677,-500.0,0.00013696,2]
[400035652,1767045032686,-400.39166141,0.00013696,2]
[400035653,1767045032695,-500.0,0.00013696,2]
[400035654,1767045032704,-500.0,0.00013696,2]
[400035655,1767045032713,-500.0,0.00013696,2]
[400035656,1767045032723,-18.05947574,0.00013696,2]
[400035657,1767045032735,-292.50211334,0.00013696,2]
[400035658,1767045032749,-189.43841092,0.00013696,2]
[400035659,1767045032759,-500.0,0.00013696,2]
[400035660,1767045032768,-277.72078908,0.00013696,2]
[400035675,1767045038515,-222.27921092,0.00013696,2]
[400035677,1767045038524,-224.27078908,0.00013696,2]
[400035679,1767045038535,-275.72921092,0.00013696,2]
[400035681,1767045038545,-500.0,0.00013696,2]
[400035683,1767045038555,-500.0,0.00013696,2]
[400035685,1767045038564,-500.0,0.00013696,2]
[400035687,1767045038578,-500.0,0.00013696,2]
[400035689,1767045038591,-500.0,0.00013696,2]
[400035690,1767045038605,-500.0,0.00013696,2]
[400035691,1767045038618,-500.0,0.00013696,2]
[400035692,1767045038630,-500.0,0.00013696,2]
[400035693,1767045038644,-500.0,0.00013696,2]
[400035694,1767045038656,-500.0,0.00013696,2]
[400035695,1767045038669,-500.0,0.00013696,2]
[400035696,1767045038682,-500.0,0.00013696,2]
[400035697,1767045038695,-500.0,0.00013696,2]
[400035698,1767045038708,-500.0,0.00013696,2]
[400035699,1767045038720,-500.0,0.00013696,2]
[400035700,1767045038733,-500.0,0.00013696,2]
[400035701,1767045038745,-500.0,0.00013696,2]
[400035702,1767045038758,-500.0,0.00013696,2]
[400035703,1767045038770,-500.0,0.00013696,2]
[400035704,1767045038781,-204.58017551,0.00013696,2]
[400035705,1767045038793,-500.0,0.00013696,2]
[400035706,1767045038806,-638.78545018,0.00013696,2]
[400035707,1767045038818,-181.25903956,0.00013696,2]
[400035708,1767045038830,-500.0,0.00013696,2]
[400035709,1767045038841,-500.0,0.00013696,2]
[400035710,1767045038854,-500.0,0.00013696,2]
[400035711,1767045038867,-500.0,0.00013696,2]
[400035712,1767045038879,-500.0,0.00013696,2]
[400035713,1767045038890,-500.0,0.00013696,2]
[400035714,1767045038900,-500.0,0.00013696,2]
[400035715,1767045038911,-500.0,0.00013696,2]
[400035716,1767045038924,-500.0,0.00013696,2]
[400035717,1767045038934,-500.0,0.00013696,2]
[400035718,1767045038946,-500.0,0.00013696,2]
[400035719,1767045038958,-500.0,0.00013696,2]
[400035720,1767045038970,-500.0,0.00013696,2]
[400035721,1767045038983,-500.0,0.00013696,2]
[400035722,1767045038995,-500.0,0.00013696,2]
[400035723,1767045039007,-500.0,0.00013696,2]
[400035724,1767045039018,-500.0,0.00013696,2]
[400035725,1767045039029,-500.0,0.00013696,2]
[400035726,1767045039041,-500.0,0.00013696,2]
[400035727,1767045039051,-500.0,0.00013696,2]
[400035728,1767045039060,-500.0,0.00013696,2]
[400035729,1767045039070,-500.0,0.00013696,2]
[400035730,1767045039080,-500.0,0.00013696,2]
[400035731,1767045039092,-500.0,0.00013696,2]
[400035732,1767045039106,-500.0,0.00013696,2]
[400035733,1767045039119,-500.0,0.00013696,2]
[400035734,1767045039131,-500.0,0.00013696,2]
[400035735,1767045039142,-242.36211551,0.00013696,2]
[400035736,1767045039152,-500.0,0.00013696,2]
[400035737,1767045039166,-500.0,0.00013696,2]
[400035738,1767045039178,-383181.66111641,0.00013697,2]
[400035739,1767045039195,-616818.33888359,0.00013697,2]
[400035740,1767045039207,-536.0740238,0.00013699,2]
[400035741,1767045039218,-1000.0,0.00013699,2]
[400035742,1767045039229,-580.75858867,0.00013699,2]
[400035743,1767045039239,-500.0,0.00013699,2]
[400035744,1767045039249,-500.0,0.00013699,2]
[400035745,1767045039261,-500.0,0.00013699,2]
[400035746,1767045039272,-578.55078283,0.00013797,2]
[400035747,1767045039283,-500.0,0.00013797,2]
[400035748,1767045039293,-500.0,0.00013797,2]
[400035749,1767045039304,-500.0,0.00013859,2]
[400035750,1767045039315,-500.0,0.00013859,2]
[400035751,1767045039327,-627.95351682,0.00013863,2]
[400035752,1767045039338,-500.0,0.00013863,2]
[400035753,1767045039349,-500.0,0.00013863,2]
[400035754,1767045039360,-623.26,0.00013863,2]
[400035755,1767045039372,-500.0,0.00013864,2]
[400035756,1767045039383,-500.0,0.00013865,2]
[400035757,1767045039395,-500.0,0.00013865,2]
[400035758,1767045039406,-500.0,0.00013865,2]
[400035759,1767045039416,-500.0,0.00013865,2]
[400035760,1767045039426,-500.0,0.00013865,2]
[400035761,1767045039437,-500.0,0.00013865,2]
[400035762,1767045039450,-500.0,0.00013865,2]
[400035763,1767045039461,-623.26,0.00013865,2]
[400035764,1767045039472,-623.26,0.00013865,2]
[400035765,1767045039483,-623.26,0.00013865,2]
[400035766,1767045039495,-623.26,0.00013865,2]
[400035767,1767045039506,-623.26,0.00013865,2]
[400035768,1767045039517,-623.26,0.00013865,2]
[400035769,1767045039527,-623.26,0.00013865,2]
[400035770,1767045039539,-623.26,0.00013865,2]
[400035771,1767045039551,-623.26,0.00013865,2]
[400035772,1767045039561,-623.26,0.00013865,2]
[400035773,1767045039572,-623.26,0.00013865,2]
[400035774,1767045039584,-623.26,0.00013865,2]
[400035775,1767045039594,-623.26,0.00013865,2]
[400035776,1767045039606,-623.26,0.00013865,2]
[400035777,1767045039616,-623.26,0.00013865,2]
[400035778,1767045039627,-623.26,0.00013865,2]
[400035779,1767045039637,-623.26,0.00013865,2]
[400035780,1767045039648,-623.26,0.00013865,2]
[400035781,1767045039659,-623.26,0.00013865,2]
[400035782,1767045039670,-623.26,0.00013865,2]
[400035783,1767045039680,-623.26,0.00013865,2]
[400035784,1767045039691,-623.26,0.00013865,2]
[400035785,1767045039701,-623.4449749,0.00013865,2]
[400035786,1767045039712,-500.0,0.00013869,2]
[400035787,1767045039724,-500.0,0.00013869,2]
[400035788,1767045039734,-500.0,0.00013869,2]
[400035789,1767045039745,-500.0,0.00013869,2]
[400035790,1767045039756,-500.0,0.00013869,2]
[400035791,1767045039767,-500.0,0.00013869,2]
[400035792,1767045039778,-500.0,0.00013869,2]
[400035793,1767045039791,-500.0,0.00013869,2]
[400035794,1767045039800,-500.0,0.00013869,2]
[400035795,1767045039810,-500.0,0.00013869,2]
[400035796,1767045039819,-500.0,0.00013869,2]
[400035797,1767045039828,-500.0,0.00013869,2]
[400035798,1767045039837,-500.0,0.00013869,2]
[400035799,1767045039847,-500.0,0.00013869,2]
[400035800,1767045039859,-500.0,0.00013869,2]
[400035801,1767045039868,-500.0,0.00013869,2]
[400035802,1767045040018,-277.68,0.00013869,2]
[400035803,1767045040033,-151.0,0.000139,2]
[400035804,1767045040042,-151.0,0.000139,2]
[400035805,1767045040052,-151.0,0.000139,2]
[400035806,1767045040063,-151.0,0.000139,2]
[400035807,1767045040073,-151.0,0.000139,2]
[400035808,1767045040082,-151.0,0.000139,2]
[400035810,1767045040091,-151.0,0.000139,2]
[400035811,1767045040100,-151.0,0.000139,2]
[400035812,1767045040109,-151.0,0.000139,2]
[400035813,1767045040118,-151.0,0.000139,2]
[400035814,1767045040127,-151.0,0.000139,2]
[400035815,1767045040136,-151.0,0.000139,2]
[400035816,1767045040146,-300.0,0.00014147,2]
[400035817,1767045040158,-300.0,0.00014147,2]
[400035818,1767045040167,-300.0,0.00014147,2]
[400035819,1767045040176,-300.0,0.00014147,2]
[400035820,1767045040185,-300.0,0.00014147,2]
[400035821,1767045040194,-300.0,0.00014147,2]
[400035822,1767045040204,-300.0,0.00014147,2]
[400035823,1767045040213,-300.0,0.00014147,2]
[400035824,1767045040222,-300.0,0.00014147,2]
[400035825,1767045040232,-300.0,0.00014147,2]
[400035826,1767045040241,-300.0,0.00014147,2]
[400035827,1767045040250,-300.0,0.00014147,2]
[400035828,1767045040259,-300.0,0.00014147,2]
[400035829,1767045040269,-300.0,0.00014147,2]
[400035830,1767045040278,-300.0,0.00014147,2]
[400035831,1767045040288,-600.0,0.00014147,2]
[400035832,1767045040297,-400.0,0.00014247,2]
[400035833,1767045040307,-500.0,0.00014247,2]
[400035834,1767045040316,-1000.0,0.00014247,2]
[400035835,1767045040326,-1000.0,0.00014247,2]
[400035836,1767045040336,-886.75013769,0.00014721,2]
[400035838,1767045040346,-1500.0,0.00014795,2]
[400035840,1767045040355,-1500.0,0.00014795,2]
[400035842,1767045040366,-65000.0,0.00015,2]
[400035844,1767045040375,-420.0,0.00015006,2]
[400035846,1767045040384,-100000.0,0.00015028,2]
[400035848,1767045040394,-2000.0,0.00015342,2]
[400035850,1767045040403,-2000.0,0.00015342,2]
[400035852,1767045040413,-720.0,0.00015561,2]
[400035854,1767045040423,-204.95494928,0.00015606,2]
[400035855,1767045040432,-1253.24308537,0.0001575,2]
[400035856,1767045040443,-2500.0,0.0001589,2]
[400035857,1767045040454,-2500.0,0.0001589,2]
[400035858,1767045040465,-529.06,0.00016286,2]
[400035859,1767045040476,-500.0,0.00016438,2]
[400035860,1767045040487,-500.0,0.00016438,2]
[400035861,1767045040498,-500.0,0.00016438,2]
[400035862,1767045040508,-500.0,0.00016438,2]
[400035863,1767045040518,-500.0,0.00016438,2]
[400035864,1767045040527,-500.0,0.00016438,2]
[400035865,1767045040537,-500.0,0.00016438,2]
[400035866,1767045040546,-500.0,0.00016438,2]
[400035867,1767045040556,-500.0,0.00016438,2]
[400035868,1767045040566,-500.0,0.00016438,2]
[400035870,1767045040575,-500.0,0.00016438,2]
[400035871,1767045040586,-500.0,0.00016438,2]
[400035872,1767045040595,-500.0,0.00016438,2]
[400035873,1767045040604,-500.0,0.00016438,2]
[400035875,1767045040614,-500.0,0.00016438,2]
[400035877,1767045040623,-500.0,0.00016438,2]
[400035879,1767045040632,-500.0,0.00016438,2]
[400035881,1767045040641,-500.0,0.00016438,2]
[400035883,1767045040650,-500.0,0.00016438,2]
[400035885,1767045040659,-500.0,0.00016438,2]
[400035887,1767045040668,-500.0,0.00016438,2]
[400035889,1767045040677,-500.0,0.00016438,2]
[400035891,1767045040686,-500.0,0.00016438,2]
[400035893,1767045040696,-500.0,0.00016438,2]
[400035895,1767045040706,-500.0,0.00016438,2]
[400035897,1767045040715,-500.0,0.00016438,2]
[400035899,1767045040724,-500.0,0.00016438,2]
[400035901,1767045040734,-249.7592923,0.00016438,2]
[400035903,1767045040743,-500.0,0.00016438,2]
[400035905,1767045040753,-500.0,0.00016438,2]
[400035907,1767045040763,-500.0,0.00016438,2]
[400035909,1767045040773,-500.0,0.00016438,2]
[400035911,1767045040782,-500.0,0.00016438,2]
[400035913,1767045040792,-500.0,0.00016438,2]
[400035915,1767045040801,-500.0,0.00016438,2]
[400035916,1767045040811,-500.0,0.00016438,2]
[400035918,1767045040822,-500.0,0.00016438,2]
[400035919,1767045040832,-500.0,0.00016438,2]
[400035920,1767045040842,-500.0,0.00016438,2]
[400035921,1767045040852,-500.0,0.00016438,2]
[400035922,1767045040861,-500.0,0.00016438,2]
[400035923,1767045040872,-500.0,0.00016438,2]
[400035924,1767045040882,-500.0,0.00016438,2]
[400035925,1767045040893,-500.0,0.00016438,2]
[400035926,1767045040903,-500.0,0.00016438,2]
[400035927,1767045040913,-500.0,0.00016438,2]
[400035928,1767045040922,-500.0,0.00016438,2]
[400035929,1767045040933,-500.0,0.00016438,2]
[400035930,1767045040945,-500.0,0.00016438,2]
[400035931,1767045040955,-500.0,0.00016438,2]
[400035932,1767045040965,-500.0,0.00016438,2]
[400035933,1767045040974,-500.0,0.00016438,2]
[400035934,1767045040986,-500.0,0.00016438,2]
[400035935,1767045040997,-500.0,0.00016438,2]
[400035936,1767045041007,-500.0,0.00016438,2]
[400035937,1767045041016,-500.0,0.00016438,2]
[400035938,1767045041026,-500.0,0.00016438,2]
[400035939,1767045041035,-500.0,0.00016438,2]
[400035940,1767045041044,-500.0,0.00016438,2]
[400035941,1767045041053,-500.0,0.00016438,2]
[400035942,1767045041063,-500.0,0.00016438,2]
[400035943,1767045041072,-500.0,0.00016438,2]
[400035944,1767045041082,-500.0,0.00016438,2]
[400035945,1767045041091,-500.0,0.00016438,2]
[400035946,1767045041100,-500.0,0.00016438,2]
[400035947,1767045041110,-600.0,0.00016438,2]
[400035948,1767045041119,-500.0,0.00016438,2]
[400035949,1767045041129,-500.0,0.00016438,2]
[400035950,1767045041138,-500.0,0.00016438,2]
[400035951,1767045041146,-500.0,0.00016438,2]
[400035952,1767045041156,-300.0,0.00016438,2]
[400035953,1767045041166,-3000.0,0.00016438,2]
[400035954,1767045041176,-3000.0,0.00016438,2]
[400035955,1767045041185,-587.0,0.00016445,2]
[400035956,1767045041194,-200.0,0.00016473,2]
[400035957,1767045041205,-500.0,0.000166,2]
[400035958,1767045041214,-3500.0,0.00016986,2]
[400035959,1767045041224,-3500.0,0.00016986,2]
[400035960,1767045041233,-55000.0,0.00017,2]
[400035961,1767045041244,-796.8678,0.00017078,2]
[400035962,1767045041253,-864.0,0.00017117,2]
[400035963,1767045041262,-160.0,0.00017456,2]
[400035964,1767045041271,-4000.0,0.00017534,2]
[400035965,1767045041280,-3334.29824017,0.00017534,2]
[400035966,1767045041289,-236.21926357,0.00017606,2]
[400035967,1767045041298,-500.0,0.00017773,2]
[400035968,1767045041308,-500.0,0.00017773,2]
[400035969,1767045041318,-481.64675475,0.00017773,2]
[400035970,1767045041327,-82897.555977,0.000178,3]
[400035971,1767045041336,-278.40277077,0.00017842,2]
[400035972,1767045041345,-250.0,0.00017961,2]
[400035973,1767045041354,-260.0,0.00018004,2]
[400035974,1767045041363,-823.0,0.00018022,2]
[400035975,1767045041372,-4500.0,0.00018082,2]
[400035976,1767045041381,-360.0,0.00018552,2]
[400035977,1767045041390,-5000.0,0.0001863,2]
[400035978,1767045041398,-1253.24308537,0.00018714,2]
[400035979,1767045041407,-846.07,0.00018792,2]
[400035980,1767045041416,-1000.0,0.00018829,2]
[400035981,1767045041425,-303.05454739,0.000189,2]
[400035982,1767045041434,-45000.0,0.00019,2]
[400035983,1767045041442,-303.05454739,0.00019089,2]
[400035984,1767045041451,-460.0,0.000191,2]
[400035985,1767045041460,-500.0,0.00019178,2]
[400035986,1767045041468,-500.0,0.00019178,2]
[400035987,1767045041478,-500.0,0.00019178,2]
[400035988,1767045041486,-500.0,0.00019178,2]
[400035989,1767045041495,-500.0,0.00019178,2]
[400035990,1767045041504,-500.0,0.00019178,2]
[400035991,1767045041513,-500.0,0.00019178,2]
[400035992,1767045041523,-500.0,0.00019178,2]
[400035993,1767045041533,-500.0,0.00019178,2]
[400035994,1767045041542,-500.0,0.00019178,2]
[400035995,1767045041552,-413.6278121,0.00019178,2]
[400035996,1767045041561,-5500.0,0.00019178,2]
[400035997,1767045041572,-157.12,0.000192,2]
[400035998,1767045041582,-2025.48,0.000192,2]
[400035999,1767045041592,-162.46,0.000192,2]
[400036000,1767045041601,-11239.3,0.000192,2]
[400036001,1767045041610,-302.80003246,0.00019278,2]
[400036002,1767045041620,-940.08,0.0001944,2]
[400036003,1767045041629,-267.48357787,0.00019606,2]
[400036004,1767045041638,-560.0,0.00019648,2]
[400036005,1767045041648,-1041.66666667,0.00019712,2]
[400036006,1767045041657,-6000.0,0.00019726,2]
[400036007,1767045041666,-1152.0,0.0001975,2]
[400036008,1767045041678,-2000.0,0.0002,7]
[400036009,1767045041687,-618.0,0.0002,2]
[400036010,1767045041696,-660.0,0.00020196,2]
[400036011,1767045041705,-170.0,0.00020274,3]
[400036012,1767045041714,-692.89424911,0.00020274,2]
[400036013,1767045041724,-296.4,0.00020402,2]
[400036014,1767045041734,-1000.0,0.00020712,2]
[400036015,1767045041743,-244.0,0.00020712,2]
[400036016,1767045041752,-860.0,0.00020744,2]
[400036017,1767045041761,-911.06708543,0.000209,2]
[400036018,1767045041771,-911.06708534,0.000209,2]
[400036019,1767045041780,-911.06708534,0.000209,2]
[400036020,1767045041789,-911.06708534,0.000209,2]
[400036021,1767045041798,-911.06708534,0.000209,2]
[400036022,1767045041808,-911.06708534,0.000209,2]
[400036023,1767045041817,-911.06708534,0.000209,2]
[400036024,1767045041826,-911.06708534,0.000209,2]
[400036025,1767045041836,-911.06708534,0.000209,2]
[400036026,1767045041845,-911.06708534,0.000209,2]
[400036027,1767045041856,-296.4,0.00021093,2]
[400036028,1767045041866,-298.74789217,0.00021606,2]
[400036029,1767045041877,-27632.5,0.00021617,3]
[400036030,1767045041885,-606.0,0.00021644,2]
[400036031,1767045041894,-2000.0,0.00021667,7]
[400036032,1767045041903,-1253.24308537,0.00021677,2]
[400036033,1767045041913,-296.4,0.00021783,2]
[400036034,1767045041922,-11239.3,0.000218,2]
[400036035,1767045041931,-515.43639332,0.00021917,2]
[400036036,1767045041940,-1354.10611933,0.00021917,2]
[400036037,1767045041950,-482.52139185,0.00021917,2]
[400036038,1767045041959,-269.01977505,0.00021917,2]
[400036039,1767045041970,-361.51873115,0.00021917,2]
[400036040,1767045041980,-177.90735047,0.00021917,2]
[400036041,1767045041990,-1000.0,0.00021917,2]
[400036042,1767045042000,-220.40876257,0.00021917,2]
[400036043,1767045042011,-225.77006582,0.00021917,2]
[400036044,1767045042021,-500.0,0.00021917,2]
[400036045,1767045042032,-240.09370217,0.00021917,2]
[400036046,1767045042042,-209.08726671,0.00021917,2]
[400036047,1767045042052,-486.31154178,0.00021917,2]